bitfinex/quotes_ETHUSD_20251122
["timestamp","ask_amount","ask_price","bid_price","bid_amount"]
[1763816592199,0.529504,2719.7,2719.6,0.7754]
[1763816592527,0.405504,2719.6,2719.0,0.1222]
[1763816592732,0.405504,2719.3,2719.0,0.1222]
[1763816593032,0.124,2719.2,2719.0,0.1222]
[1763816593529,0.529504,2719.2,2719.1,0.3877]
[1763816593912,0.124,2719.2,2719.1,0.7754]
[1763816594600,0.124,2719.2,2719.1,0.3877]
[1763816595000,0.124,2719.2,2719.1,0.7754]
[1763816595400,0.124,2719.2,2719.1,0.3877]
[1763816595824,0.529504,2719.2,2719.1,0.3877]
[1763816596001,0.529504,2719.2,2719.0,0.1222]
[1763816596205,0.529504,2719.2,2718.9,0.001]
[1763816596936,0.529504,2719.2,2719.1,0.5099]
[1763816597256,0.529504,2719.2,2718.9,0.001]
[1763816597604,0.529504,2719.2,2719.1,0.3877]
[1763816597812,0.405504,2719.1,2718.9,0.001]
[1763816598011,0.897504,2719.0,2718.9,0.001]
[1763816598434,1.369004,2719.0,2718.9,0.001]
[1763816599137,1.71186207,2719.0,2718.9,0.001]
[1763816599338,1.369004,2719.0,2718.9,0.001]
[1763816599543,1.71173306,2719.0,2718.9,0.001]
[1763816601145,1.91005397,2719.0,2718.9,0.001]
[1763816601732,1.03304997,2719.0,2718.9,0.001]
[1763816601945,6.8715,2719.3,2718.9,0.001]
[1763816602141,0.124,2719.2,2718.9,0.3887]
[1763816602647,0.529504,2719.2,2719.1,0.3877]
[1763816603019,0.405504,2719.1,2719.0,0.1222]
[1763816603420,0.897504,2719.1,2718.9,0.001]
[1763816603625,1.6396544,2719.1,2718.9,0.001]
[1763816604120,0.124,2719.2,2719.0,0.3877]
[1763816604352,0.124,2719.2,2719.1,0.5099]
[1763816604677,0.529504,2719.2,2719.1,0.5099]
[1763816604974,0.405504,2719.2,2719.1,0.5099]
[1763816605159,0.529504,2719.2,2719.1,0.3877]
[1763816605358,0.531504,2719.2,2718.9,0.001]
[1763816605939,0.126,2719.2,2719.1,0.5099]
[1763816606276,0.126,2719.2,2719.1,0.8976]
[1763816607540,0.126,2719.2,2719.1,0.5099]
[1763816611575,0.126,2719.2,2719.1,0.8976]
[1763816612009,0.126,2719.2,2719.1,5.48228011]
[1763816613369,0.126,2719.2,2719.1,1.80459264]
[1763816614190,0.126,2719.2,2719.1,1.41689264]
[1763816614399,0.126,2719.2,2719.1,0.5099]
[1763816614711,0.126,2719.2,2718.9,0.3887]
[1763816614712,0.126,2719.2,2718.9,0.001]
[1763816617869,0.126,2719.2,2719.1,0.3877]
[1763816618610,0.5853,2719.2,2718.9,0.001]
[1763816619004,0.126,2719.2,2718.9,0.001]
[1763816619889,0.126,2719.2,2719.1,0.3877]
[1763816620630,0.126,2719.2,2718.9,0.001]
[1763816620631,0.405504,2719.1,2718.9,0.001]
[1763816620802,0.855704,2719.0,2718.9,0.001]
[1763816623390,1.351904,2719.0,2718.9,0.001]
[1763816623805,2.34404686,2719.0,2718.9,0.001]
[1763816626727,3.2510395,2719.0,2718.9,0.001]
[1763816628299,2.60172702,2719.0,2718.9,0.001]
[1763816629229,2.10552702,2719.0,2718.9,0.001]
[1763816629429,1.24982302,2719.0,2718.9,0.001]
[1763816629600,2.11462702,2719.0,2718.9,0.001]
[1763816629795,1.65532702,2719.0,2718.9,0.3887]
[1763816630029,1.31249664,2719.0,2718.9,0.001]
[1763816630231,0.126,2719.2,2718.9,0.7764]
[1763816630232,0.002,2719.2,2718.9,0.7764]
[1763816630450,0.124,2719.1,2718.9,0.001]
[1763816631232,0.4593,2719.0,2718.9,0.001]
[1763816632429,0.124,2719.1,2718.9,0.001]
[1763816633628,0.529504,2719.1,2718.9,0.001]
[1763816634033,0.9555,2719.0,2718.9,0.001]
[1763816634734,0.4593,2719.0,2718.9,0.001]
[1763816635037,0.529504,2719.1,2718.9,0.3887]
[1763816635208,0.529504,2719.1,2718.9,0.001]
[1763816635601,0.864804,2719.0,2718.9,0.001]
[1763816635826,1.0540548,2719.0,2718.9,0.001]
[1763816636013,1.5502548,2719.0,2718.9,0.001]
[1763816636309,1.0540548,2719.0,2718.9,0.001]
[1763816636632,0.5947548,2719.0,2718.9,0.001]
[1763816636843,1.361004,2719.0,2718.9,0.001]
[1763816637010,0.864804,2719.0,2718.9,0.001]
[1763816637512,0.405504,2719.0,2718.9,0.001]
[1763816637813,0.405504,2719.0,2718.9,0.3887]
[1763816641220,0.124,2719.1,2718.9,0.3887]
[1763816641221,0.126,2719.1,2718.9,0.3887]
[1763816641518,0.002,2719.1,2719.0,0.3877]
[1763816641717,0.126,2719.1,2719.0,0.3877]
[1763816641947,0.126,2719.1,2719.0,0.7754]
[1763816643347,0.126,2719.1,2719.0,0.3877]
[1763816643719,0.5853,2719.1,2718.9,0.001]
[1763816644331,0.126,2719.1,2719.0,0.7754]
[1763816645826,0.126,2719.1,2719.0,4.45322272]
[1763816646022,0.002,2719.1,2719.0,5.36021536]
[1763816646221,0.126,2719.1,2719.0,5.36021536]
[1763816650894,0.126,2719.1,2719.0,1.68239264]
[1763816651088,0.126,2719.1,2719.0,5.36021536]
[1763816651402,0.126,2719.1,2719.0,1.68239264]
[1763816651597,0.126,2719.1,2719.0,5.36021536]
[1763816652176,0.126,2719.1,2719.0,1.68239264]
[1763816652882,0.126,2719.1,2719.0,0.3877]
[1763816653178,0.126,2719.1,2719.0,0.7754]
[1763816654975,0.126,2719.1,2719.0,0.3877]
[1763816656478,0.126,2719.1,2718.9,0.001]
[1763816656776,0.126,2719.1,2719.0,0.3877]
[1763816657179,0.126,2719.1,2719.0,0.7754]
[1763816657345,0.126,2719.1,2719.0,0.3877]
[1763816659081,0.126,2719.1,2719.0,0.7754]
[1763816659082,0.002,2719.1,2719.0,0.7754]
[1763816659283,0.126,2719.1,2719.0,0.7754]
[1763816659982,0.126,2719.1,2719.0,0.3877]
[1763816660171,0.126,2719.1,2718.9,0.001]
[1763816660172,0.57836231,2719.1,2718.9,0.001]
[1763816660373,0.09126231,2719.1,2718.9,0.001]
[1763816660573,0.4891,2719.0,2718.9,0.001]
[1763816660746,0.9812,2719.0,2718.9,0.001]
[1763816662085,0.4891,2719.0,2718.9,0.001]
[1763816662387,0.9812,2719.0,2718.9,0.001]
[1763816663560,1.386704,2719.0,2718.9,0.001]
[1763816665687,2.37847473,2719.0,2718.9,0.001]
[1763816666858,5.80581737,2719.0,2718.9,0.001]
[1763816667264,3.28546737,2719.0,2718.9,0.001]
[1763816667873,5.40598737,2719.0,2718.9,0.001]
[1763816668388,5.48345137,2719.0,2718.9,0.001]
[1763816668568,5.42750137,2719.0,2718.9,0.001]
[1763816669354,3.28546737,2719.0,2718.9,0.001]
[1763816670291,5.32357937,2719.0,2718.9,0.001]
[1763816670805,5.43811137,2719.0,2718.9,0.001]
[1763816670961,3.28546737,2719.0,2718.9,0.001]
[1763816672402,2.23044466,2719.0,2718.9,0.001]
[1763816672566,1.03099264,2719.0,2718.9,0.001]
[1763816672760,0.124,2719.0,2718.9,0.001]
[1763816673165,1.1052,2719.0,2718.9,0.001]
[1763816673577,0.124,2719.0,2718.9,0.001]
[1763816674477,1.018604,2719.0,2718.9,0.001]
[1763816674678,1.510704,2719.0,2718.9,0.001]
[1763816675382,0.529504,2719.0,2718.9,0.001]
[1763816676667,1.003104,2719.0,2718.9,0.001]
[1763816676880,1.477404,2719.0,2718.9,0.001]
[1763816677878,1.003104,2719.0,2718.9,0.001]
[1763816678800,1.477404,2719.0,2718.9,0.001]
[1763816678972,0.124,2719.0,2718.9,0.3887]
[1763816680108,0.124,2719.0,2718.9,0.001]
[1763816680411,1.0965,2719.0,2718.9,0.001]
[1763816680580,1.502004,2719.0,2718.9,0.001]
[1763816681891,1.027704,2719.0,2718.9,0.001]
[1763816682296,1.502004,2719.0,2718.9,0.001]
[1763816682914,1.027704,2719.0,2718.9,0.001]
[1763816683316,1.502004,2719.0,2718.9,0.001]
[1763816684601,1.027704,2719.0,2718.9,0.001]
[1763816685123,0.002,2719.1,2718.9,0.7764]
[1763816685325,0.124,2719.0,2718.9,0.3887]
[1763816686009,0.124,2719.0,2718.9,0.7764]
[1763816689619,0.124,2719.0,2718.9,0.001]
[1763816689938,0.124,2719.0,2718.9,0.3887]
[1763816690326,0.124,2719.0,2718.9,0.7764]
[1763816693141,0.124,2719.0,2718.9,0.3887]
[1763816694410,0.6222,2719.0,2718.9,0.001]
[1763816694615,0.124,2719.0,2718.9,0.3887]
[1763816697949,1.0965,2719.0,2718.9,0.001]
[1763816700566,5.04407354,2719.0,2718.9,0.001]
[1763816700868,6.79882637,2719.0,2718.9,0.001]
[1763816701030,10.34089591,2719.0,2718.9,0.001]
[1763816701220,1.091504,2718.7,2718.4,0.001]
[1763816701421,1.091504,2718.7,2718.3,0.001]
[1763816701422,0.405504,2718.4,2718.3,0.001]
[1763816701666,2.2863957,2718.4,2718.3,0.001]
[1763816701831,0.405504,2718.2,2716.8,1.43149264]
[1763816702025,0.405504,2717.7,2716.8,0.5245]
[1763816702223,0.7861,2717.6,2716.8,0.5245]
[1763816702449,0.7861,2717.6,2716.8,1.43149264]
[1763816702849,0.7861,2717.6,2716.8,0.5245]
[1763816703061,0.7861,2717.6,2716.9,0.3917]
[1763816703268,0.4982,2716.9,2716.0,0.1222]
[1763816703427,0.4304,2716.7,2716.0,0.5139]
[1763816704340,0.124,2716.8,2716.1,0.3917]
[1763816704721,0.4743,2716.7,2716.0,0.1222]
[1763816704925,0.405504,2716.6,2716.0,0.1222]
[1763816705328,0.4743,2716.7,2716.0,0.1222]
[1763816705329,0.879804,2716.7,2716.0,0.1222]
[1763816706026,0.4641,2716.1,2714.9,4.87545821]
[1763816706323,0.124,2716.0,2715.1,0.3917]
[1763816707065,0.124,2716.0,2715.9,0.3917]
[1763816707525,0.124,2716.0,2715.9,0.7834]
[1763816708146,0.405504,2716.7,2715.9,0.7834]
[1763816708456,0.124,2716.6,2715.9,0.7834]
[1763816710272,0.124,2716.6,2716.0,0.3917]
[1763816710772,0.1878,2717.6,2716.5,0.3917]
[1763816710973,0.124,2717.5,2716.7,0.3917]
[1763816711480,0.124,2717.5,2716.7,0.7834]
[1763816711843,0.124,2717.5,2716.8,0.3917]
[1763816712480,0.124,2717.5,2717.4,0.5285]
[1763816712848,0.124,2717.5,2717.4,0.9202]
[1763816713388,4.74265821,2719.0,2717.4,0.9202]
[1763816713547,0.4985,2718.5,2717.5,0.3917]
[1763816714868,0.124,2718.6,2717.5,1.29869264]
[1763816715244,0.124,2718.6,2717.7,3.67958199]
[1763816715555,0.124,2718.6,2717.6,1.29869264]
[1763816716080,0.124,2718.6,2717.7,0.3917]
[1763816717140,0.124,2718.6,2717.8,0.90699264]
[1763816717345,0.6225,2718.6,2717.7,1.29869264]
[1763816717538,0.6225,2718.6,2717.7,4.97825482]
[1763816717957,0.6225,2718.6,2717.8,0.3917]
[1763816718173,0.124,2718.6,2717.8,0.3917]
[1763816718582,0.10561089,2718.6,2717.8,0.3917]
[1763816719984,0.10561089,2718.6,2717.8,4.0711344]
[1763816720179,0.10561089,2718.6,2717.9,0.3917]
[1763816720709,0.10561089,2718.6,2717.7,0.90699264]
[1763816720888,0.60411089,2718.6,2717.6,0.3917]
[1763816721196,0.60411089,2718.6,2717.4,0.1368]
[1763816721197,0.60411089,2718.6,2717.7,0.3917]
[1763816721371,0.10561089,2718.6,2717.7,0.3917]
[1763816721873,0.10561089,2718.6,2718.5,0.5245]
[1763816722044,0.10561089,2718.6,2717.8,3.67944661]
[1763816722245,0.10561089,2718.6,2717.9,0.3917]
[1763816723872,0.10561089,2718.6,2718.0,3.67917586]
[1763816724069,0.10561089,2718.6,2718.1,0.90699264]
[1763816724293,0.10561089,2718.6,2718.1,1.43149264]
[1763816724506,0.10561089,2718.6,2718.5,0.3917]
[1763816725006,0.10561089,2718.6,2718.5,0.7834]
[1763816726091,0.10561089,2718.6,2718.5,0.3917]
[1763816727013,0.124,2718.6,2718.5,5.36889181]
[1763816727510,0.002,2719.1,2718.6,0.90699264]
[1763816727710,0.002,2719.1,2719.0,0.3917]
[1763816727911,0.126,2719.1,2719.0,0.3917]
[1763816728086,0.126,2719.1,2719.0,5.36821536]
[1763816732240,0.002,2719.4,2719.1,1.69039264]
[1763816732525,0.002,2719.8,2719.4,1.70419664]
[1763816732677,0.4985,2721.1,2719.7,0.3917]
[1763816732876,0.1941,2722.0,2720.1,6.16355085]
[1763816732877,0.4985,2721.4,2720.1,6.16355085]
[1763816733109,0.101,2720.2,2720.1,6.16355085]
[1763816733295,0.101,2720.2,2720.1,6.55525085]
[1763816734379,0.101,2720.2,2720.1,10.23158627]
[1763816735613,0.101,2720.2,2720.1,11.37971778]
[1763816737917,0.101,2720.2,2720.1,10.23158627]
[1763816738419,0.101,2720.2,2720.1,1.42089264]
[1763816738626,0.101,2720.2,2720.1,0.5139]
[1763816739115,0.101,2720.2,2720.1,5.09722806]
[1763816739622,0.101,2720.2,2720.1,1.42089264]
[1763816739786,0.101,2720.2,2720.1,0.90699264]
[1763816739982,0.5856,2720.2,2720.1,0.90699264]
[1763816740386,1.0556,2720.2,2720.1,0.90699264]
[1763816740827,1.0556,2720.2,2719.4,0.1222]
[1763816741026,0.4243,2719.9,2719.4,0.90699264]
[1763816741225,0.4243,2719.9,2719.2,0.1222]
[1763816741520,0.4243,2719.9,2719.1,0.1222]
[1763816741722,0.1926,2720.0,2719.2,0.03677552]
[1763816741907,0.1926,2720.0,2719.2,0.42847552]
[1763816742710,0.1926,2720.0,2719.3,3.67741698]
[1763816742986,0.1926,2720.0,2719.4,0.94376545]
[1763816743191,0.101,2720.2,2719.4,1.33546545]
[1763816743415,0.101,2720.2,2719.5,0.3917]
[1763816743728,0.101,2720.2,2719.6,0.03677011]
[1763816744022,0.101,2720.2,2720.1,0.3917]
[1763816744696,0.101,2720.2,2719.7,0.3917]
[1763816744898,0.101,2720.2,2719.9,0.90699264]
[1763816745484,0.101,2720.2,2720.1,0.3917]
[1763816745717,0.101,2720.2,2719.9,0.94375869]
[1763816745718,0.4846,2720.0,2719.6,0.90699264]
[1763816745988,0.101,2720.2,2719.6,1.29869264]
[1763816746528,0.101,2720.2,2719.6,0.90699264]
[1763816746692,0.47,2720.1,2719.5,0.90699264]
[1763816746887,0.47,2720.1,2719.4,7.35446998]
[1763816746888,0.47,2720.1,2719.4,4.58417568]
[1763816747110,0.47,2720.1,2719.4,8.26145743]
[1763816747622,0.101,2720.2,2719.4,8.26145743]
[1763816747826,0.101,2720.2,2719.4,8.65315743]
[1763816748129,0.571,2720.2,2719.4,8.26145743]
[1763816748829,0.571,2720.2,2719.4,8.26245743]
[1763816749040,0.101,2720.2,2719.5,0.03677146]
[1763816749346,0.101,2720.2,2719.5,0.42847146]
[1763816749526,0.101,2720.2,2720.1,0.3917]
[1763816749730,0.101,2720.2,2720.1,0.7834]
[1763816750905,0.101,2720.2,2720.1,5.36672806]
[1763816751240,0.101,2720.2,2720.1,1.29869264]
[1763816752009,0.101,2720.2,2720.1,0.90699264]
[1763816752206,0.101,2720.2,2720.1,4.97502806]
[1763816752410,0.101,2720.2,2720.1,5.40349141]
[1763816752847,0.101,2720.2,2720.1,5.36672806]
[1763816756479,0.101,2720.2,2720.1,5.40349141]
[1763816756931,0.101,2720.2,2720.1,5.36672806]
[1763816758363,0.101,2720.2,2720.1,9.17672806]
[1763816760051,0.101,2720.2,2720.1,9.89844893]
[1763816761063,0.101,2720.2,2720.1,4.71699264]
[1763816761231,1.0556,2720.2,2720.1,4.71699264]
[1763816761564,0.101,2720.2,2720.1,9.17672806]
[1763816761862,0.101,2720.2,2720.1,4.71699264]
[1763816762163,0.101,2720.2,2720.1,8.39332806]
[1763816762340,0.101,2720.2,2720.1,0.90699264]
[1763816762535,1.0556,2720.2,2719.6,3.67701132]
[1763816762731,1.0556,2720.2,2719.7,0.90699264]
[1763816763162,0.47,2720.1,2719.7,0.90699264]
[1763816763549,0.47,2720.1,2719.8,3.67674093]
[1763816764267,0.47,2720.1,2719.8,7.35348186]
[1763816764442,0.101,2720.2,2719.8,7.35348186]
[1763816764643,0.101,2720.2,2719.7,3.67681558]
[1763816764644,0.6772,2719.9,2719.7,3.67681558]
[1763816765048,0.6772,2719.9,2719.8,0.90699264]
[1763816765566,0.1926,2720.1,2720.0,0.90699264]
[1763816765938,0.6705,2720.1,2720.0,0.90699264]
[1763816766157,0.101,2720.2,2720.0,1.29869264]
[1763816766356,0.101,2720.2,2720.0,1.33545734]
[1763816766564,0.101,2720.2,2720.0,0.90699264]
[1763816766760,0.4779,2720.1,2719.9,0.90699264]
[1763816766963,0.433,2720.0,2719.9,0.90699264]
[1763816767551,0.433,2720.0,2719.9,4.58359839]
[1763816767865,0.101,2720.2,2719.9,8.65190414]
[1763816768062,0.101,2720.2,2720.0,0.0367647]
[1763816768571,0.101,2720.2,2720.1,0.3917]
[1763816769288,0.101,2720.2,2720.1,0.7834]
[1763816769571,0.002,2720.2,2720.1,4.06803542]
[1763816769770,0.002,2720.2,2720.1,4.49649877]
[1763816769975,0.002,2720.2,2720.1,5.40349141]
[1763816773380,0.4799,2720.2,2720.1,0.90699264]
[1763816773541,0.002,2720.2,2720.1,4.58332806]
[1763816774155,0.002,2720.2,2720.1,5.40349141]
[1763816774562,0.002,2720.2,2720.1,5.36672806]
[1763816775384,0.002,2720.2,2720.1,4.97502806]
[1763816775581,0.002,2720.2,2720.1,4.58332806]
[1763816776173,0.002,2720.2,2720.1,4.97502806]
[1763816776349,0.002,2720.2,2720.1,5.40349141]
[1763816776879,0.002,2720.2,2720.1,6.11274186]
[1763816777589,0.002,2720.2,2720.1,10.02550521]
[1763816777761,0.002,2720.2,2720.1,9.98874186]
[1763816777961,0.002,2720.2,2720.1,10.39424586]
[1763816778164,0.002,2720.2,2720.1,9.59704186]
[1763816778484,0.002,2720.2,2720.1,5.72104186]
[1763816779063,0.002,2720.2,2720.1,4.97502806]
[1763816779270,0.002,2720.2,2720.1,4.58332806]
[1763816779582,0.002,2720.2,2720.1,4.97502806]
[1763816779996,0.002,2720.2,2720.1,5.01179141]
[1763816780156,0.002,2720.2,2720.1,14.69363803]
[1763816780356,0.002,2720.2,2720.1,14.65687468]
[1763816781554,0.124,2720.3,2720.1,15.38500005]
[1763816781761,0.002,2720.5,2720.2,9.78189664]
[1763816781970,0.002,2720.8,2720.4,5.58019664]
[1763816782189,0.002,2720.8,2720.7,9.98285994]
[1763816782487,0.119,2721.1,2720.9,3.876]
[1763816782687,0.119,2721.1,2721.0,5.58019664]
[1763816782864,0.124,2721.8,2721.3,0.90699264]
[1763816783592,0.124,2721.8,2721.3,5.17469264]
[1763816783958,0.124,2721.9,2721.3,5.17469264]
[1763816784158,0.5913,2721.9,2721.5,0.90699264]
[1763816785185,0.124,2721.9,2721.5,0.90699264]
[1763816785888,0.5913,2721.9,2721.5,0.90699264]
[1763816786201,0.4779,2721.6,2721.2,0.90699264]
[1763816786390,0.4673,2721.8,2721.2,0.90699264]
[1763816786391,0.4309,2721.5,2721.2,8.2566913]
[1763816786792,0.8982,2721.5,2721.2,8.2566913]
[1763816788020,0.8982,2721.5,2720.7,0.3917]
[1763816788021,0.4673,2721.5,2720.6,5.40034262]
[1763816788350,0.4673,2721.5,2720.9,0.90699264]
[1763816788508,0.4673,2721.5,2720.6,3.67565978]
[1763816788684,0.4779,2720.9,2720.7,0.90699264]
[1763816788890,0.124,2720.8,2720.6,3.67565978]
[1763816789122,0.124,2720.8,2720.6,7.35131956]
[1763816789298,0.5913,2720.8,2720.7,0.90699264]
[1763816789625,0.124,2720.8,2720.7,0.90699264]
[1763816790690,0.124,2720.8,2720.7,4.61927256]
[1763816790986,0.124,2720.8,2720.7,5.01097256]
[1763816791203,0.124,2720.8,2720.7,5.40267256]
[1763816793198,0.124,2720.8,2720.7,5.36591732]
[1763816794095,0.6019,2720.8,2720.7,0.90699264]
[1763816794324,1.0692,2720.8,2720.7,0.90699264]
[1763816795314,0.6019,2720.8,2720.7,4.58251732]
[1763816796036,1.0548,2720.8,2719.9,7.35316859]
[1763816796214,0.4451,2720.6,2719.9,7.35316859]
[1763816796621,0.4529,2720.5,2720.0,0.90699264]
[1763816796823,0.4529,2720.5,2720.1,0.03676335]
[1763816797225,0.5845,2720.8,2720.3,0.90699264]
[1763816797440,0.5845,2720.8,2720.4,0.0367593]
[1763816797604,0.4605,2720.7,2720.3,0.90699264]
[1763816798305,0.124,2720.8,2720.3,0.94375329]
[1763816799403,0.124,2720.8,2720.5,0.90699264]
[1763816799631,0.124,2720.8,2720.6,0.03675659]
[1763816799833,0.124,2720.8,2720.7,1.29869264]
[1763816801152,0.124,2720.8,2720.7,1.69039264]
[1763816801568,0.124,2720.8,2720.7,5.40267256]
[1763816801722,0.124,2720.8,2720.7,5.77142132]
[1763816802923,0.002,2721.1,2720.7,13.12247068]
[1763816803866,0.002,2721.1,2721.0,0.3917]
[1763816804271,0.002,2721.1,2721.0,0.7834]
[1763816804572,0.002,2721.1,2721.0,0.42845119]
[1763816805179,0.002,2721.1,2721.0,0.82015119]
[1763816805536,0.002,2721.1,2721.0,6.34408645]
[1763816805737,0.002,2721.1,2721.0,10.41090589]
[1763816805963,0.002,2721.1,2721.0,10.3741547]
[1763816806938,0.002,2721.1,2721.0,10.09067077]
[1763816807566,0.002,2721.1,2721.0,9.69897077]
[1763816807759,0.002,2721.1,2721.0,10.09067077]
[1763816808476,0.002,2721.1,2721.0,10.49617477]
[1763816808771,0.125,2721.4,2721.1,1.31249664]
[1763816809138,0.125,2721.4,2721.3,0.3917]
[1763816810066,0.125,2721.4,2721.3,4.97340693]
[1763816810767,0.6192,2721.4,2721.3,4.58170693]
[1763816811148,0.125,2721.4,2721.3,4.58170693]
[1763816811461,0.125,2721.4,2721.3,5.01015407]
[1763816811666,0.125,2721.4,2721.3,4.97340693]
[1763816815089,0.125,2721.4,2721.3,5.37891093]
[1763816815289,0.002,2721.7,2721.3,5.37891093]
[1763816815290,0.002,2721.7,2721.4,1.31249664]
[1763816815591,0.002,2721.7,2721.6,6.02385133]
[1763816816162,0.002,2721.7,2721.6,5.63215133]
[1763816816689,0.002,2721.7,2721.6,6.02385133]
[1763816816892,0.9567,2721.7,2721.6,9.30646055]
[1763816817056,0.002,2721.7,2721.6,9.69816055]
[1763816818860,0.002,2721.7,2721.6,13.97966455]
[1763816819061,0.002,2721.7,2721.6,14.37136455]
[1763816819474,0.091,2722.1,2721.7,1.31249664]
[1763816819677,0.091,2722.1,2722.0,6.02385133]
[1763816819873,0.091,2722.1,2722.0,6.06058902]
[1763816820078,0.002,2723.4,2722.0,6.06058902]
[1763816820079,0.1872,2722.7,2722.1,5.18849664]
[1763816820267,0.1872,2722.7,2722.5,0.90699264]
[1763816820571,0.6477,2722.7,2722.5,0.90699264]
[1763816820776,0.6477,2722.7,2722.4,4.72515869]
[1763816820777,0.4942,2722.6,2722.0,4.91995869]
[1763816820996,0.4942,2722.1,2722.0,4.77555023]
[1763816821210,0.1872,2722.7,2722.1,0.90699264]
[1763816821393,0.1872,2722.7,2722.5,0.90699264]
[1763816821566,0.4605,2722.6,2722.1,0.90699264]
[1763816821969,0.4942,2722.2,2722.1,0.90699264]
[1763816822165,0.4605,2722.6,2722.1,0.90699264]
[1763816822369,0.4605,2722.6,2722.1,1.29869264]
[1763816822672,0.4942,2722.2,2722.1,0.90699264]
[1763816822893,0.4942,2722.2,2722.1,4.58062696]
[1763816823093,0.9547,2722.2,2722.0,0.90699264]
[1763816823293,0.4426,2722.1,2722.0,4.58070243]
[1763816823493,0.9031,2722.1,2722.0,4.58070243]
[1763816825008,0.124,2722.1,2722.0,4.58070243]
[1763816826066,0.5745,2722.1,2722.0,4.58070243]
[1763816826402,0.124,2722.1,2722.0,8.88514012]
[1763816826702,0.124,2722.1,2722.0,9.25390643]
[1763816827108,0.124,2722.1,2722.0,9.64560643]
[1763816827397,0.5745,2722.1,2722.0,8.45670243]
[1763816828108,0.124,2722.1,2722.0,9.24010243]
[1763816828610,0.1872,2722.7,2722.3,0.90699264]
[1763816828783,0.7809,2722.7,2722.5,3.67309458]
[1763816828984,0.3112,2722.7,2722.6,0.90699264]
[1763816829494,0.7617,2722.7,2722.6,0.90699264]
[1763816829692,1.2314,2722.7,2722.6,0.90699264]
[1763816830970,1.2314,2722.7,2722.4,4.58014182]
[1763816831301,0.3112,2722.7,2722.4,8.25337132]
[1763816831500,0.4505,2722.5,2722.4,4.58014182]
[1763816831702,0.4505,2722.5,2722.4,0.90699264]
[1763816831903,0.9202,2722.5,2722.0,3.67376928]
[1763816832072,0.4697,2722.5,2722.1,0.90699264]
[1763816832406,0.4505,2722.1,2722.0,3.67376928]
[1763816832605,0.4505,2722.1,2722.0,4.58076192]
[1763816832926,0.4697,2722.6,2722.1,0.90699264]
[1763816833123,0.4697,2722.6,2722.2,7.38373373]
[1763816833274,0.4697,2722.6,2722.3,0.90699264]
[1763816833699,0.4505,2722.4,2722.3,0.90699264]
[1763816834094,0.9202,2722.4,2722.3,0.90699264]
[1763816835213,0.9202,2722.4,2722.3,4.58035707]
[1763816836421,0.9202,2722.4,2722.3,8.45635707]
[1763816836631,0.9202,2722.4,2722.3,4.58035707]
[1763816836795,0.9202,2722.4,2722.3,8.1121788]
[1763816837311,0.9202,2722.4,2721.9,7.20571331]
[1763816837634,0.4697,2722.3,2722.1,0.90699264]
[1763816838013,0.4505,2722.2,2722.1,0.90699264]
[1763816838392,0.9202,2722.2,2722.1,0.90699264]
[1763816838639,0.9202,2722.2,2721.6,7.34282173]
[1763816838640,0.9202,2722.2,2721.6,7.48528726]
[1763816838838,0.5937,2722.1,2721.8,3.53182173]
[1763816839197,0.4697,2722.0,2721.9,0.90699264]
[1763816839412,0.9202,2722.0,2721.9,0.90699264]
[1763816841197,0.124,2722.1,2721.9,4.61763593]
[1763816841419,0.124,2722.1,2722.0,4.43881437]
[1763816841616,0.5937,2722.1,2722.0,4.43881437]
[1763816841951,0.5745,2722.1,2722.0,4.43881437]
[1763816842603,0.4697,2722.5,2722.1,0.90699264]
[1763816842801,0.124,2722.4,2722.3,3.53182173]
[1763816843252,1.0442,2722.4,2722.3,4.47554801]
[1763816843402,0.124,2722.4,2722.3,11.64400053]
[1763816843700,0.124,2722.4,2722.3,8.5038788]
[1763816843896,0.124,2722.4,2722.3,12.03570053]
[1763816844646,0.124,2722.4,2722.3,16.70890453]
[1763816844849,0.124,2722.4,2722.3,14.36588419]
[1763816845415,0.002,2722.6,2722.3,18.03924862]
[1763816845741,0.002,2723.1,2723.0,5.18849664]
[1763816845921,0.002,2723.1,2723.0,6.01931576]
[1763816846125,0.002,2723.1,2723.0,5.62761576]
[1763816846528,0.002,2723.1,2723.0,6.01931576]
[1763816846728,0.9222,2723.1,2722.9,0.73509825]
[1763816846928,0.4505,2723.0,2722.7,0.90699264]
[1763816847154,0.4505,2722.8,2722.7,0.90699264]
[1763816847449,0.4505,2722.8,2722.6,0.90699264]
[1763816847749,0.5745,2722.7,2722.6,0.90699264]
[1763816848512,1.0442,2722.7,2722.6,0.90699264]
[1763816849753,1.0442,2722.7,2722.3,0.90699264]
[1763816849961,0.4697,2722.6,2722.3,4.58035707]
[1763816850159,0.4505,2722.4,2722.3,4.58035707]
[1763816850457,0.4505,2722.4,2722.3,3.67336443]
[1763816850657,0.9202,2722.4,2722.3,0.90699264]
[1763816853730,0.9202,2722.4,2721.8,8.39464823]
[1763816853947,0.4505,2722.2,2721.8,12.06868746]
[1763816854147,0.124,2722.1,2721.9,0.90699264]
[1763816854442,0.5937,2722.1,2721.8,3.6740312]
[1763816854651,0.124,2722.1,2721.9,0.90699264]
[1763816854862,0.124,2722.1,2721.9,5.62761576]
[1763816855333,0.124,2722.1,2722.0,0.3917]
[1763816856025,0.124,2722.1,2722.0,4.06546928]